fUSD/lending_fUSD_20250211
["ID","MTS","AMOUNT","RATE_DAILY","PERIOD"]
[352757145,1739292690270,-851.21,0.00017808,2]
[352757146,1739292690282,-1026.57,0.00017808,2]
[352757147,1739292690293,-1722.06,0.00017808,2]
[352757148,1739292690304,-755.82,0.00017808,2]
[352757149,1739292690314,-500.0,0.00017808,2]
[352757150,1739292690323,-500.0,0.00017808,2]
[352757151,1739292690334,-1007.91,0.00017808,2]
[352757152,1739292690343,-1556.32,0.00017808,2]
[352757153,1739292690353,-743.69,0.00017808,2]
[352757154,1739292690363,-787.8,0.00017808,2]
[352757155,1739292690373,-500.0,0.00017808,2]
[352757156,1739292690382,-775.23,0.00017808,2]
[352757157,1739292690392,-1296.08,0.00017808,2]
[352757158,1739292690402,-3453.19,0.00017808,2]
[352757159,1739292690411,-1077.77,0.00017808,2]
[352757160,1739292690421,-903.8,0.00017808,2]
[352757161,1739292690431,-1620.87,0.00017808,2]
[352757162,1739292690441,-1360.37,0.00017808,2]
[352757163,1739292690451,-871.16,0.00017808,2]
[352757164,1739292690461,-1044.51,0.00017808,2]
[352757165,1739292690472,-1892.93,0.00017808,2]
[352757166,1739292690482,-1187.32,0.00017808,2]
[352757167,1739292690492,-1128.96,0.00017808,2]
[352757168,1739292690501,-500.0,0.00017808,2]
[352757169,1739292690510,-664.21,0.00017808,2]
[352757170,1739292690522,-1085.95,0.00017808,2]
[352757171,1739292690534,-831.29,0.00017808,2]
[352757172,1739292690544,-500.0,0.00017808,2]
[352757173,1739292690554,-1315.41,0.00017808,2]
[352757174,1739292690564,-1736.09,0.00017808,2]
[352757175,1739292690575,-1449.55,0.00017808,2]
[352757176,1739292690587,-792.28,0.00017808,2]
[352757177,1739292690597,-1153.98,0.00017808,2]
[352757178,1739292690607,-500.0,0.00017808,2]
[352757179,1739292690617,-500.0,0.00017808,2]
[352757180,1739292690627,-1628.97,0.00017808,2]
[352757181,1739292690637,-1363.01,0.00017808,2]
[352757182,1739292690647,-2696.96,0.00017808,2]
[352757183,1739292690657,-500.0,0.00017808,2]
[352757184,1739292690667,-1143.92,0.00017808,2]
[352757185,1739292690677,-628.01,0.00017808,2]
[352757186,1739292690687,-1164.3,0.00017808,2]
[352757187,1739292690697,-500.0,0.00017808,2]
[352757188,1739292690707,-1186.05,0.00017808,2]
[352757189,1739292690717,-1316.05,0.00017808,2]
[352757190,1739292690727,-507.5,0.00017808,2]
[352757191,1739292690736,-1204.14,0.00017808,2]
[352757192,1739292690746,-2709.34,0.00017808,2]
[352757193,1739292690755,-2432.62,0.00017808,2]
[352757194,1739292690765,-1383.14,0.00017808,2]
[352757195,1739292690777,-1113.99,0.00017808,2]
[352757196,1739292690786,-516.51,0.00017808,2]
[352757197,1739292690796,-770.35,0.00017808,2]
[352757198,1739292690806,-3406.84,0.00017808,2]
[352757199,1739292690816,-1152.94,0.00017808,2]
[352757200,1739292690828,-1081.2,0.00017808,2]
[352757201,1739292690837,-2107.97,0.00017808,2]
[352757202,1739292690846,-500.0,0.00017808,2]
[352757203,1739292690856,-1266.65,0.00017808,2]
[352757204,1739292690866,-694.27,0.00017808,2]
[352757205,1739292690876,-517.54,0.00017808,2]
[352757206,1739292690887,-760.33,0.00017808,2]
[352757207,1739292690897,-1409.01,0.00017808,2]
[352757208,1739292690907,-1622.42,0.00017808,2]
[352757209,1739292690916,-908.49,0.00017808,2]
[352757210,1739292690926,-500.0,0.00017808,2]
[352757211,1739292690935,-1394.87,0.00017808,2]
[352757212,1739292690944,-1146.54,0.00017808,2]
[352757213,1739292690954,-2904.03,0.00017808,2]
[352757214,1739292690965,-881.37,0.00017808,2]
[352757215,1739292690975,-500.0,0.00017808,2]
[352757216,1739292690984,-581.55,0.00017808,2]
[352757217,1739292690994,-1246.46,0.00017808,2]
[352757218,1739292691003,-963.63,0.00017808,2]
[352757219,1739292691013,-500.0,0.00017808,2]
[352757220,1739292691023,-500.0,0.00017808,2]
[352757221,1739292691035,-500.0,0.00017808,2]
[352757222,1739292691044,-494.99068087,0.00017808,2]
[352757223,1739292691055,-500.0,0.00017808,2]
[352757224,1739292691065,-1035.86,0.00017808,2]
[352757225,1739292691075,-1186.79,0.00017808,2]
[352757226,1739292691086,-1512.18,0.00017808,2]
[352757227,1739292691095,-718.14,0.00017808,2]
[352757228,1739292691105,-361.67063763,0.00017808,2]
[352757229,1739292691115,-1350.44,0.00017808,2]
[352757230,1739292691124,-500.0,0.00017808,2]
[352757231,1739292691134,-1320.12,0.00017808,2]
[352757232,1739292691144,-500.0,0.00017808,2]
[352757233,1739292691154,-668.38,0.00017808,2]
[352757234,1739292691163,-500.0,0.00017808,2]
[352757235,1739292691174,-500.0,0.00017808,2]
[352757236,1739292691185,-862.44,0.00017808,2]
[352757237,1739292691195,-1589.93,0.00017808,2]
[352757238,1739292691206,-985.84,0.00017808,2]
[352757239,1739292691216,-1153.41,0.00017808,2]
[352757240,1739292691226,-1534.98,0.00017808,2]
[352757241,1739292691236,-500.0,0.00017808,2]
[352757242,1739292691247,-500.0,0.00017808,2]
[352757243,1739292691257,-1581.96,0.00017808,2]
[352757244,1739292691269,-1598.66,0.00017808,2]
[352757245,1739292691282,-761.15,0.00017808,2]
[352757246,1739292691292,-500.0,0.00017808,2]
[352757247,1739292691302,-1270.11,0.00017808,2]
[352757248,1739292691312,-737.13,0.00017808,2]
[352757249,1739292691322,-992.82,0.00017808,2]
[352757250,1739292691331,-259.29784063,0.00017808,2]
[352757251,1739292691341,-1121.5,0.00017808,2]
[352757252,1739292691350,-824.99,0.00017808,2]
[352757253,1739292691360,-1979.99,0.00017808,2]
[352757254,1739292691369,-500.0,0.00017808,2]
[352757255,1739292691379,-1201.69,0.00017808,2]
[352757256,1739292691389,-500.0,0.00017808,2]
[352757257,1739292691399,-635.61,0.00017808,2]
[352757258,1739292691408,-812.69,0.00017808,2]
[352757259,1739292691419,-500.0,0.00017808,2]
[352757260,1739292691428,-500.0,0.00017808,2]
[352757261,1739292691438,-666.6,0.0001785,2]
[352757262,1739292691448,-1714.81906621,0.0001785,2]
[352757263,1739292691457,-540.43233479,0.0001785,2]
[352757264,1739292691467,-320.59908382,0.0001785,3]
[352757265,1739292691476,-371.01006813,0.0001785,2]
[352757266,1739292691486,-617.67,0.00017881,2]
[352757267,1739292691496,-671.45,0.00017881,2]
[352757268,1739292691505,-929.9,0.00017881,2]
[352757269,1739292691515,-10395.55057901,0.00017887,5]
[352757270,1739292691524,-500.0,0.00017899,2]
[352757271,1739292691538,-500.0,0.000179,3]
[352757272,1739292691547,-148109.00728451,0.000179,3]
[352757273,1739292691557,-1400.0,0.000179,6]
[352757274,1739292691567,-9527.25091491,0.00017945,2]
[352757275,1739292691577,-1043.727911,0.00017945,2]
[352757276,1739292691586,-1232.861141,0.00017945,2]
[352757277,1739292691597,-500.0,0.00017945,2]
[352757278,1739292691606,-500.0,0.00017945,2]
[352757279,1739292691615,-658.54,0.00017945,2]
[352757280,1739292691625,-500.0,0.00017945,2]
[352757281,1739292691634,-500.0,0.00017945,2]
[352757282,1739292691644,-397.60066668,0.00017945,2]
[352757283,1739292691653,-500.0,0.00017945,2]
[352757284,1739292691663,-708.99,0.00017945,2]
[352757285,1739292691672,-620.8,0.00017945,2]
[352757286,1739292691681,-206.55,0.00017945,2]
[352757287,1739292691691,-500.0,0.00017945,2]
[352757288,1739292691701,-616.82,0.00017945,2]
[352757289,1739292691711,-533.34,0.00017945,2]
[352757290,1739292691721,-512.37,0.00017945,2]
[352757291,1739292691731,-500.0,0.00017945,2]
[352757292,1739292691741,-626.01,0.00017945,2]
[352757293,1739292691750,-593.14,0.00017945,2]
[352757294,1739292691760,-681.21,0.00017945,2]
[352757295,1739292691769,-500.0,0.00017945,2]
[352757296,1739292691782,-565.98,0.00017945,2]
[352757297,1739292691792,-500.0,0.00017945,2]
[352757298,1739292691802,-610.07,0.00017945,2]
[352757299,1739292691811,-500.0,0.00017945,2]
[352757300,1739292691820,-653.33,0.00017945,2]
[352757301,1739292691830,-500.0,0.00017945,2]
[352757302,1739292691840,-575.35,0.00017945,2]
[352757303,1739292691849,-543.76,0.00017945,2]
[352757304,1739292691858,-560.98,0.00017945,2]
[352757305,1739292691868,-500.0,0.00017945,2]
[352757306,1739292691878,-504.72,0.00017945,2]
[352757307,1739292691890,-500.0,0.00017945,2]
[352757308,1739292691899,-500.0,0.00017945,2]
[352757309,1739292691909,-500.0,0.00017945,2]
[352757310,1739292691918,-721.21,0.00017945,2]
[352757311,1739292691928,-500.0,0.00017945,2]
[352757312,1739292691938,-500.0,0.00017945,2]
[352757313,1739292691947,-500.0,0.00017945,2]
[352757314,1739292691958,-686.28,0.00017945,2]
[352757315,1739292691967,-500.0,0.00017945,2]
[352757316,1739292691976,-628.87,0.00017945,2]
[352757317,1739292691985,-500.0,0.00017945,2]
[352757318,1739292691994,-656.08,0.00017945,2]
[352757319,1739292692004,-500.0,0.00017945,2]
[352757320,1739292692014,-973.03,0.00017945,2]
[352757321,1739292692023,-769.16,0.00017945,2]
[352757322,1739292692035,-500.0,0.00017945,2]
[352757323,1739292692045,-500.0,0.00017945,2]
[352757324,1739292692055,-2633.29,0.00017945,2]
[352757325,1739292692126,-608.46,0.00017945,2]
[352757326,1739292692136,-500.0,0.00017945,2]
[352757327,1739292692147,-562.42,0.00017945,2]
[352757328,1739292692157,-702.19,0.00017945,2]
[352757329,1739292692167,-500.0,0.00017945,2]
[352757330,1739292692177,-603.78,0.00017945,2]
[352757331,1739292692187,-500.0,0.00017945,2]
[352757332,1739292692196,-500.0,0.00017945,2]
[352757333,1739292692206,-500.0,0.00017945,2]
[352757334,1739292692217,-500.0,0.00017945,2]
[352757335,1739292692226,-521.19,0.00017945,2]
[352757336,1739292692235,-1362.81,0.00017945,2]
[352757337,1739292692245,-557.52,0.00017945,2]
[352757338,1739292692255,-1147.2,0.00017945,2]
[352757339,1739292692264,-500.0,0.00017945,2]
[352757340,1739292692273,-500.0,0.00017945,2]
[352757341,1739292692286,-681.22,0.00017945,2]
[352757342,1739292692296,-765.29,0.00017945,2]
[352757343,1739292692305,-500.0,0.00017945,2]
[352757344,1739292692316,-500.0,0.00017945,2]
[352757345,1739292692325,-500.0,0.00017945,2]
[352757346,1739292692335,-500.0,0.00017945,2]
[352757347,1739292692345,-659.27,0.00017945,2]
[352757348,1739292692354,-500.0,0.00017945,2]
[352757349,1739292692363,-571.46,0.00017945,2]
[352757350,1739292692373,-500.0,0.00017945,2]
[352757351,1739292692382,-567.07,0.00017945,2]
[352757352,1739292692391,-500.0,0.00017945,2]
[352757353,1739292692400,-1328.94,0.00017945,2]
[352757354,1739292692410,-702.14,0.00017945,2]
[352757355,1739292692419,-653.21,0.00017945,2]
[352757356,1739292692429,-500.0,0.00017945,2]
[352757357,1739292692438,-505.62,0.00017945,2]
[352757358,1739292692448,-781.92,0.00017945,2]
[352757359,1739292692457,-361.48017816,0.00017945,2]
[352757360,1739292692467,-768.57,0.00017945,2]
[352757361,1739292692476,-733.07,0.00017945,2]
[352757362,1739292692487,-607.06,0.00017945,2]
[352757363,1739292692496,-708.15,0.00017945,2]
[352757364,1739292692507,-500.0,0.00017945,2]
[352757365,1739292692516,-1118.08,0.00017945,2]
[352757366,1739292692529,-500.0,0.00017945,2]
[352757367,1739292692538,-500.0,0.00017945,2]
[352757368,1739292692547,-1638.68,0.00017945,2]
[352757369,1739292692556,-500.0,0.00017945,2]
[352757370,1739292692566,-972.23,0.00017945,2]
[352757371,1739292692576,-500.0,0.00017945,2]
[352757372,1739292692586,-1025.95,0.00017945,2]
[352757373,1739292692597,-849.42,0.00017945,2]
[352757374,1739292692607,-589.34,0.00017945,2]
[352757375,1739292692616,-949.12,0.00017945,2]
[352757376,1739292692626,-623.19,0.00017945,2]
[352757377,1739292692636,-774.19,0.00017945,2]
[352757378,1739292692646,-592.84,0.00017945,2]
[352757379,1739292692655,-897.44,0.00017945,2]
[352757380,1739292692664,-500.0,0.00017945,2]
[352757381,1739292692674,-1236.71,0.00017945,2]
[352757382,1739292692683,-1146.12,0.00017945,2]
[352757383,1739292692692,-877.02,0.00017945,2]
[352757384,1739292692702,-500.0,0.00017945,2]
[352757385,1739292692712,-636.96,0.00017945,2]
[352757386,1739292692721,-851.21,0.00017945,2]
[352757387,1739292692731,-1026.57,0.00017945,2]
[352757388,1739292692740,-1722.06,0.00017945,2]
[352757389,1739292692750,-755.82,0.00017945,2]
[352757390,1739292692759,-500.0,0.00017945,2]
[352757391,1739292692769,-500.0,0.00017945,2]
[352757392,1739292692782,-1007.91,0.00017945,2]
[352757393,1739292692791,-1556.32,0.00017945,2]
[352757394,1739292692801,-743.69,0.00017945,2]
[352757395,1739292692811,-787.8,0.00017945,2]
[352757396,1739292692820,-500.0,0.00017945,2]
[352757397,1739292692829,-775.23,0.00017945,2]
[352757398,1739292692838,-1296.08,0.00017945,2]
[352757399,1739292692847,-3453.19,0.00017945,2]
[352757400,1739292692857,-1077.77,0.00017945,2]
[352757401,1739292692866,-903.8,0.00017945,2]
[352757402,1739292692876,-1620.87,0.00017945,2]
[352757403,1739292692887,-1360.37,0.00017945,2]
[352757404,1739292692896,-871.16,0.00017945,2]
[352757405,1739292692905,-1044.51,0.00017945,2]
[352757406,1739292692914,-1892.93,0.00017945,2]
[352757407,1739292692923,-1187.32,0.00017945,2]
[352757408,1739292692933,-1128.96,0.00017945,2]
[352757409,1739292692942,-500.0,0.00017945,2]
[352757410,1739292692951,-664.21,0.00017945,2]
[352757411,1739292692961,-1085.95,0.00017945,2]
[352757412,1739292692971,-831.29,0.00017945,2]
[352757413,1739292692981,-500.0,0.00017945,2]
[352757414,1739292692990,-1315.41,0.00017945,2]
[352757415,1739292693000,-1736.09,0.00017945,2]
[352757416,1739292693010,-1449.55,0.00017945,2]
[352757417,1739292693020,-792.28,0.00017945,2]
[352757418,1739292693034,-1153.98,0.00017945,2]
[352757419,1739292693045,-500.0,0.00017945,2]
[352757420,1739292693056,-500.0,0.00017945,2]
[352757421,1739292693067,-1628.97,0.00017945,2]
[352757422,1739292693078,-1363.01,0.00017945,2]
[352757423,1739292693088,-2696.96,0.00017945,2]
[352757424,1739292693099,-363.42,0.00017945,2]
[352757425,1739292693109,-1143.92,0.00017945,2]
[352757426,1739292693119,-628.01,0.00017945,2]
[352757427,1739292693129,-1164.3,0.00017945,2]
[352757428,1739292693139,-500.0,0.00017945,2]
[352757429,1739292693149,-1186.05,0.00017945,2]
[352757430,1739292693160,-1316.05,0.00017945,2]
[352757431,1739292693170,-507.5,0.00017945,2]
[352757432,1739292693180,-1204.14,0.00017945,2]
[352757433,1739292693191,-2709.34,0.00017945,2]
[352757434,1739292693201,-2432.62,0.00017945,2]
[352757435,1739292693211,-1383.14,0.00017945,2]
[352757436,1739292693222,-1113.99,0.00017945,2]
[352757437,1739292693232,-516.51,0.00017945,2]
[352757438,1739292693242,-770.35,0.00017945,2]
[352757439,1739292693254,-3406.84,0.00017945,2]
[352757440,1739292693264,-1152.94,0.00017945,2]
[352757441,1739292693279,-1081.2,0.00017945,2]
[352757442,1739292693290,-2107.97,0.00017945,2]
[352757443,1739292693300,-500.0,0.00017945,2]
[352757444,1739292693311,-1266.65,0.00017945,2]
[352757445,1739292693320,-694.27,0.00017945,2]
[352757446,1739292693331,-517.54,0.00017945,2]
[352757447,1739292693341,-760.33,0.00017945,2]
[352757448,1739292693351,-1409.01,0.00017945,2]
[352757449,1739292693362,-1622.42,0.00017945,2]
[352757450,1739292693372,-908.49,0.00017945,2]
[352757451,1739292693383,-500.0,0.00017945,2]
[352757452,1739292693393,-1394.87,0.00017945,2]
[352757453,1739292693403,-1146.54,0.00017945,2]
[352757454,1739292693413,-2904.03,0.00017945,2]
[352757455,1739292693423,-881.37,0.00017945,2]
[352757456,1739292693433,-500.0,0.00017945,2]
[352757457,1739292693443,-581.55,0.00017945,2]
[352757458,1739292693453,-1246.46,0.00017945,2]
[352757459,1739292693463,-963.63,0.00017945,2]
[352757460,1739292693474,-500.0,0.00017945,2]
[352757461,1739292693485,-500.0,0.00017945,2]
[352757462,1739292693497,-500.0,0.00017945,2]
[352757463,1739292693508,-500.0,0.00017945,2]
[352757464,1739292693521,-1035.86,0.00017945,2]
[352757465,1739292693535,-1512.18,0.00017945,2]
[352757466,1739292693546,-1186.79,0.00017945,2]
[352757467,1739292693556,-718.14,0.00017945,2]
[352757468,1739292693566,-1350.44,0.00017945,2]
[352757469,1739292693577,-500.0,0.00017945,2]
[352757470,1739292693587,-1320.12,0.00017945,2]
[352757471,1739292693597,-500.0,0.00017945,2]
[352757472,1739292693609,-668.38,0.00017945,2]
[352757473,1739292693619,-500.0,0.00017945,2]
[352757474,1739292693629,-500.0,0.00017945,2]
[352757475,1739292693640,-862.44,0.00017945,2]
[352757476,1739292693651,-1589.93,0.00017945,2]
[352757477,1739292693661,-985.84,0.00017945,2]
[352757478,1739292693672,-1153.41,0.00017945,2]
[352757479,1739292693683,-1534.98,0.00017945,2]
[352757480,1739292693693,-500.0,0.00017945,2]
[352757481,1739292693703,-500.0,0.00017945,2]
[352757482,1739292693713,-1581.96,0.00017945,2]
[352757483,1739292693724,-1598.66,0.00017945,2]
[352757484,1739292693735,-761.15,0.00017945,2]
[352757485,1739292693746,-500.0,0.00017945,2]
[352757486,1739292693756,-1270.11,0.00017945,2]
[352757487,1739292693766,-737.13,0.00017945,2]
[352757488,1739292693777,-992.82,0.00017945,2]
[352757489,1739292693788,-1121.5,0.00017945,2]
[352757490,1739292693799,-824.99,0.00017945,2]
[352757491,1739292693810,-1979.99,0.00017945,2]
[352757492,1739292693820,-500.0,0.00017945,2]
[352757493,1739292693831,-1201.69,0.00017945,2]
[352757494,1739292693842,-500.0,0.00017945,2]
[352757495,1739292693852,-635.61,0.00017945,2]
[352757496,1739292693862,-812.69,0.00017945,2]
[352757497,1739292693873,-246.27211774,0.00017945,2]
[352757498,1739292693885,-500.0,0.00017945,2]
[352757499,1739292693896,-1000.0,0.00017947,2]
[352757500,1739292693906,-879.35,0.00017949,2]
[352757501,1739292693916,-509.9334477,0.00017965,2]
[352757502,1739292693928,-1000.0,0.00017973,2]
[352757503,1739292693939,-597.91245029,0.00017973,2]
[352757504,1739292693950,-274.668041,0.0001798,2]
[352757505,1739292693962,-666.6,0.00017987,2]
[352757506,1739292693973,-500.0,0.00017999,2]
[352757507,1739292693983,-10000.0,0.00018,7]
[352757508,1739292693993,-9853.23187127,0.00018,10]
[352757509,1739292694004,-31202.28677511,0.00018,2]
[352757510,1739292694014,-900.0,0.00018,5]
[352757511,1739292694027,-11992.4617351,0.00018,2]
[352757512,1739292694037,-5002.05098,0.00018,30]
[352757513,1739292694048,-3473.95,0.00018,2]
[352757514,1739292694059,-1100.0,0.00018,8]
[352757515,1739292694069,-41703.94772386,0.00018,2]
[352757516,1739292694079,-900.0,0.00018,19]
[352757517,1739292694089,-26420.54,0.00018,2]
[352757518,1739292694100,-300.0,0.00018,2]
[352757519,1739292694111,-300.0,0.00018,2]
[352757520,1739292694122,-344.78422355,0.00018004,2]
[352757521,1739292694132,-150.0,0.0001801,100]
[352757522,1739292694143,-617.67,0.00018018,2]
[352757523,1739292694154,-671.45,0.00018018,2]
[352757524,1739292694166,-929.9,0.00018018,2]
[352757525,1739292694178,-10395.55057901,0.00018068,5]
[352757526,1739292694188,-156.067019,0.00018082,2]
[352757527,1739292694199,-1043.727911,0.00018082,2]
[352757528,1739292694211,-1232.861141,0.00018082,2]
[352757529,1739292694221,-500.0,0.00018082,2]
[352757530,1739292694232,-500.0,0.00018082,2]
[352757531,1739292694243,-658.54,0.00018082,2]
[352757532,1739292694253,-226.81947155,0.00018082,2]
[352757533,1739292694264,-264.01322653,0.00018082,2]
[352757534,1739292694278,-500.0,0.00018082,2]
[352757535,1739292694289,-708.99,0.00018082,2]
[352757536,1739292694300,-620.8,0.00018082,2]
[352757537,1739292694311,-500.0,0.00018082,2]
[352757538,1739292694324,-616.82,0.00018082,2]
[352757539,1739292694334,-533.34,0.00018082,2]
[352757540,1739292694345,-512.37,0.00018082,2]
[352757541,1739292694357,-500.0,0.00018082,2]
[352757542,1739292694367,-626.01,0.00018082,2]
[352757543,1739292694378,-593.14,0.00018082,2]
[352757544,1739292694389,-681.21,0.00018082,2]
[352757545,1739292694401,-500.0,0.00018082,2]
[352757546,1739292694412,-565.98,0.00018082,2]
[352757547,1739292694424,-500.0,0.00018082,2]
[352757548,1739292694436,-610.07,0.00018082,2]
[352757549,1739292694447,-500.0,0.00018082,2]
[352757550,1739292694459,-653.33,0.00018082,2]
[352757551,1739292694470,-500.0,0.00018082,2]
[352757552,1739292694482,-575.35,0.00018082,2]
[352757553,1739292694495,-543.76,0.00018082,2]
[352757554,1739292694508,-560.98,0.00018082,2]
[352757555,1739292694520,-500.0,0.00018082,2]
[352757556,1739292694540,-504.72,0.00018082,2]
[352757557,1739292694552,-500.0,0.00018082,2]
[352757558,1739292694563,-500.0,0.00018082,2]
[352757559,1739292694575,-500.0,0.00018082,2]
[352757560,1739292694592,-721.21,0.00018082,2]
[352757561,1739292694604,-500.0,0.00018082,2]
[352757562,1739292694616,-500.0,0.00018082,2]
[352757563,1739292694628,-500.0,0.00018082,2]
[352757564,1739292694639,-686.28,0.00018082,2]
[352757565,1739292694649,-500.0,0.00018082,2]
[352757566,1739292694661,-628.87,0.00018082,2]
[352757567,1739292694671,-500.0,0.00018082,2]
[352757568,1739292694680,-656.08,0.00018082,2]
[352757569,1739292694691,-500.0,0.00018082,2]
[352757570,1739292694700,-973.03,0.00018082,2]
[352757571,1739292694711,-769.16,0.00018082,2]
[352757572,1739292694722,-500.0,0.00018082,2]
[352757573,1739292694732,-500.0,0.00018082,2]
[352757574,1739292694743,-2633.29,0.00018082,2]
[352757575,1739292694753,-608.46,0.00018082,2]
[352757576,1739292694764,-500.0,0.00018082,2]
[352757577,1739292694776,-562.42,0.00018082,2]
[352757578,1739292694787,-702.19,0.00018082,2]
[352757579,1739292694797,-500.0,0.00018082,2]
[352757580,1739292694809,-603.78,0.00018082,2]
[352757581,1739292694820,-500.0,0.00018082,2]
[352757582,1739292694831,-500.0,0.00018082,2]
[352757583,1739292694841,-500.0,0.00018082,2]
[352757584,1739292694851,-500.0,0.00018082,2]
[352757585,1739292694861,-521.19,0.00018082,2]
[352757586,1739292694871,-1362.81,0.00018082,2]
[352757587,1739292694884,-557.52,0.00018082,2]
[352757588,1739292694895,-1147.2,0.00018082,2]
[352757589,1739292694905,-500.0,0.00018082,2]
[352757590,1739292694916,-500.0,0.00018082,2]
[352757591,1739292694927,-681.22,0.00018082,2]
[352757592,1739292694937,-765.29,0.00018082,2]
[352757593,1739292694948,-500.0,0.00018082,2]
[352757594,1739292694958,-500.0,0.00018082,2]
[352757595,1739292694969,-500.0,0.00018082,2]
[352757596,1739292694979,-500.0,0.00018082,2]
[352757597,1739292694990,-659.27,0.00018082,2]
[352757598,1739292695001,-500.0,0.00018082,2]
[352757599,1739292695012,-571.46,0.00018082,2]
[352757600,1739292695022,-500.0,0.00018082,2]
[352757601,1739292695035,-567.07,0.00018082,2]
[352757602,1739292695046,-500.0,0.00018082,2]
[352757603,1739292695056,-1328.94,0.00018082,2]
[352757604,1739292695066,-702.14,0.00018082,2]
[352757605,1739292695077,-653.21,0.00018082,2]
[352757606,1739292695087,-500.0,0.00018082,2]
[352757607,1739292695098,-505.62,0.00018082,2]
[352757608,1739292695108,-781.92,0.00018082,2]
[352757609,1739292695118,-768.57,0.00018082,2]
[352757610,1739292695128,-733.07,0.00018082,2]
[352757611,1739292695138,-607.06,0.00018082,2]
[352757612,1739292695148,-708.15,0.00018082,2]
[352757613,1739292695158,-500.0,0.00018082,2]
[352757614,1739292695169,-1118.08,0.00018082,2]
[352757615,1739292695179,-500.0,0.00018082,2]
[352757616,1739292695189,-500.0,0.00018082,2]
[352757617,1739292695199,-1638.68,0.00018082,2]
[352757618,1739292695209,-500.0,0.00018082,2]
[352757619,1739292695219,-972.23,0.00018082,2]
[352757620,1739292695230,-500.0,0.00018082,2]
[352757621,1739292695241,-1025.95,0.00018082,2]
[352757622,1739292695251,-849.42,0.00018082,2]
[352757623,1739292695262,-589.34,0.00018082,2]
[352757624,1739292695273,-949.12,0.00018082,2]
[352757625,1739292695286,-623.19,0.00018082,2]
[352757626,1739292695296,-774.19,0.00018082,2]
[352757627,1739292695307,-592.84,0.00018082,2]
[352757628,1739292695318,-897.44,0.00018082,2]
[352757629,1739292695330,-250.51270754,0.00018082,2]
[352757630,1739292695341,-1236.71,0.00018082,2]
[352757631,1739292695352,-1146.12,0.00018082,2]
[352757632,1739292695362,-877.02,0.00018082,2]
[352757633,1739292695372,-500.0,0.00018082,2]
[352757634,1739292695383,-636.96,0.00018082,2]
[352757635,1739292695393,-851.21,0.00018082,2]
[352757636,1739292695402,-1026.57,0.00018082,2]
[352757637,1739292695413,-1722.06,0.00018082,2]
[352757638,1739292695423,-755.82,0.00018082,2]
[352757639,1739292695433,-500.0,0.00018082,2]
[352757640,1739292695443,-500.0,0.00018082,2]
[352757641,1739292695454,-1007.91,0.00018082,2]
[352757642,1739292695464,-1556.32,0.00018082,2]
[352757643,1739292695474,-743.69,0.00018082,2]
[352757644,1739292695483,-787.8,0.00018082,2]